Workbook

Sheet aktuell
B2: Eingabefelder | G2: Legende Projektphasen (Spalte F) | EV2: Version 4 vom 27.06.2022
G3: 1 | I3: Planung (SIA 11-21) | T3: 2 | V3: Projektierung (SIA 31-33) | AI3: 3 | AK3: Kreditbeschaffung | AV3: 4 | AX3: Ausführung (SIA 41-53) | CL3: Projektnr. | CR3: Bezeichnung | DR3: PL
CL4: xxx.xxxxx | CR4: Projekt X
A5: Startjahr Projekt | B5: 2021 | G5: 5 | I5: Mitwirkung/Vernehmlassung/Auflage/Submission | AI5: 6 | AK5: Risiko | CL5: Kantonsstrasse / Kantonales Gewässer
CL6: Nr.
A7: Stand Terminplanung: | B7: 2022-06-27 | G7: 0
A9: Tätigkeit * | G9: =B5+G7 -> 2021 | S9: =G9+1 -> 2022 | AE9: =S9+1 -> 2023 | AQ9: =AE9+1 -> 2024 | BC9: =AQ9+1 -> 2025 | BO9: =BC9+1 -> 2026 | CA9: =BO9+1 -> 2027 | CM9: =CA9+1 -> 2028 | CY9: =CM9+1 -> 2029 | DK9: =CY9+1 -> 2030 | DW9: Bemerkungen
B10: Anfang | C10: Ende | D10: Dauer | E10: shift | F10: Phase | G10: J | H10: F | I10: M | J10: A | K10: M | L10: J | M10: J | N10: A | O10: S | P10: O | Q10: N | R10: D | S10: J | T10: F | U10: M | V10: A | W10: M | X10: J | Y10: J | Z10: A | AA10: S | AB10: O | AC10: N | AD10: D | AE10: J | AF10: F | AG10: M | AH10: A | AI10: M | AJ10: J | AK10: J | AL10: A | AM10: S | AN10: O | AO10: N | AP10: D | AQ10: J | AR10: F | AS10: M | AT10: A | AU10: M | AV10: J | AW10: J | AX10: A | AY10: S | AZ10: O | BA10: N | BB10: D | BC10: J | BD10: F | BE10: M | BF10: A | BG10: M | BH10: J | BI10: J | BJ10: A | BK10: S | BL10: O | BM10: N | BN10: D | BO10: J | BP10: F | BQ10: M | BR10: A | BS10: M | BT10: J | BU10: J | BV10: A | BW10: S | BX10: O | BY10: N | BZ10: D | CA10: J | CB10: F | CC10: M | CD10: A | CE10: M | CF10: J | CG10: J | CH10: A | CI10: S | CJ10: O | CK10: N | CL10: D | CM10: J | CN10: F | CO10: M | CP10: A | CQ10: M | CR10: J | CS10: J | CT10: A | CU10: S | CV10: O | CW10: N | CX10: D | CY10: J | CZ10: F | DA10: M | DB10: A | DC10: M | DD10: J | DE10: J | DF10: A | DG10: S | DH10: O | DI10: N | DJ10: D | DK10: J | DL10: F | DM10: M | DN10: A | DO10: M | DP10: J | DQ10: J | DR10: A | DS10: S | DT10: O | DU10: N | DV10: D
G11: =DATE(G9,1,1) -> 2021-01-01 | H11: =EDATE(G11,1) -> 2021-02-01 | I11: =EDATE(H11,1) -> 2021-03-01 | J11: =EDATE(I11,1) -> 2021-04-01 | K11: 2021-05-01 | L11: 2021-06-01 | M11: 2021-07-01 | N11: 2021-08-01 | O11: 2021-09-01 | P11: 2021-10-01 | Q11: 2021-11-01 | R11: 2021-12-01 | S11: 2022-01-01 | T11: 2022-02-01 | U11: 2022-03-01 | V11: 2022-04-01 | W11: 2022-05-01 | X11: 2022-06-01 | Y11: 2022-07-01 | Z11: 2022-08-01 | AA11: 2022-09-01 | AB11: 2022-10-01 | AC11: 2022-11-01 | AD11: 2022-12-01 | AE11: 2023-01-01 | AF11: 2023-02-01 | AG11: 2023-03-01 | AH11: 2023-04-01 | AI11: 2023-05-01 | AJ11: 2023-06-01 | AK11: 2023-07-01 | AL11: 2023-08-01 | AM11: 2023-09-01 | AN11: 2023-10-01 | AO11: 2023-11-01 | AP11: 2023-12-01 | AQ11: 2024-01-01 | AR11: 2024-02-01 | AS11: 2024-03-01 | AT11: 2024-04-01 | AU11: 2024-05-01 | AV11: 2024-06-01 | AW11: 2024-07-01 | AX11: 2024-08-01 | AY11: 2024-09-01 | AZ11: 2024-10-01 | BA11: 2024-11-01 | BB11: 2024-12-01 | BC11: 2025-01-01 | BD11: 2025-02-01 | BE11: 2025-03-01 | BF11: 2025-04-01 | BG11: 2025-05-01 | BH11: 2025-06-01 | BI11: 2025-07-01 | BJ11: 2025-08-01 | BK11: 2025-09-01 | BL11: 2025-10-01 | BM11: 2025-11-01 | BN11: 2025-12-01 | BO11: 2026-01-01 | BP11: 2026-02-01 | BQ11: 2026-03-01 | BR11: 2026-04-01 | BS11: 2026-05-01 | BT11: 2026-06-01 | BU11: 2026-07-01 | BV11: =EDATE(BU11,1) -> 2026-08-01 | BW11: 2026-09-01 | BX11: 2026-10-01 | BY11: 2026-11-01 | BZ11: 2026-12-01 | CA11: =EDATE(BZ11,1) -> 2027-01-01 | CB11: =EDATE(CA11,1) -> 2027-02-01 | CC11: =EDATE(CB11,1) -> 2027-03-01 | CD11: =EDATE(CC11,1) -> 2027-04-01 | CE11: =EDATE(CD11,1) -> 2027-05-01 | CF11: =EDATE(CE11,1) -> 2027-06-01 | CG11: =EDATE(CF11,1) -> 2027-07-01 | CH11: =EDATE(CG11,1) -> 2027-08-01 | CI11: =EDATE(CH11,1) -> 2027-09-01 | CJ11: =EDATE(CI11,1) -> 2027-10-01 | CK11: =EDATE(CJ11,1) -> 2027-11-01 | CL11: =EDATE(CK11,1) -> 2027-12-01 | CM11: =EDATE(CL11,1) -> 2028-01-01 | CN11: =EDATE(CM11,1) -> 2028-02-01 | CO11: =EDATE(CN11,1) -> 2028-03-01 | CP11: =EDATE(CO11,1) -> 2028-04-01 | CQ11: =EDATE(CP11,1) -> 2028-05-01 | CR11: =EDATE(CQ11,1) -> 2028-06-01 | CS11: =EDATE(CR11,1) -> 2028-07-01 | CT11: =EDATE(CS11,1) -> 2028-08-01 | CU11: =EDATE(CT11,1) -> 2028-09-01 | CV11: =EDATE(CU11,1) -> 2028-10-01 | CW11: =EDATE(CV11,1) -> 2028-11-01 | CX11: =EDATE(CW11,1) -> 2028-12-01 | CY11: =EDATE(CX11,1) -> 2029-01-01 | CZ11: =EDATE(CY11,1) -> 2029-02-01 | DA11: =EDATE(CZ11,1) -> 2029-03-01 | DB11: =EDATE(DA11,1) -> 2029-04-01 | DC11: =EDATE(DB11,1) -> 2029-05-01 | DD11: =EDATE(DC11,1) -> 2029-06-01 | DE11: =EDATE(DD11,1) -> 2029-07-01 | DF11: =EDATE(DE11,1) -> 2029-08-01 | DG11: =EDATE(DF11,1) -> 2029-09-01 | DH11: =EDATE(DG11,1) -> 2029-10-01 | DI11: =EDATE(DH11,1) -> 2029-11-01 | DJ11: =EDATE(DI11,1) -> 2029-12-01 | DK11: =EDATE(DJ11,1) -> 2030-01-01 | DL11: =EDATE(DK11,1) -> 2030-02-01 | DM11: =EDATE(DL11,1) -> 2030-03-01 | DN11: =EDATE(DM11,1) -> 2030-04-01 | DO11: =EDATE(DN11,1) -> 2030-05-01 | DP11: =EDATE(DO11,1) -> 2030-06-01 | DQ11: =EDATE(DP11,1) -> 2030-07-01 | DR11: =EDATE(DQ11,1) -> 2030-08-01 | DS11: =EDATE(DR11,1) -> 2030-09-01 | DT11: =EDATE(DS11,1) -> 2030-10-01 | DU11: =EDATE(DT11,1) -> 2030-11-01 | DV11: =EDATE(DU11,1) -> 2030-12-01
A12: Vorlauf | B12: =MIN(B13:B18) -> 2021-01-01 | C12: =MAX(C13:C18) -> 2021-01-31 | F12: 1 | DW12: evtl. Planer beauftragen
A13: Schwachstellen, Handlungsbedarf dokumentieren | B13: =EDATE(DATE(B5,1,1),E13) -> 2021-01-01 | C13: =EDATE(B13,ABS(D13))-1 -> 2021-01-31 | D13: 1
A14: Entscheid Projekt auslösen (Planungsstudie oder VP) | B14: =EDATE(C13+1,E14) -> 2021-02-01 | C14: =EDATE(B14,ABS(D14))-1 -> 2021-01-31
B15: =EDATE(C14+1,E15) -> 2021-02-01 | C15: =EDATE(B15,ABS(D15))-1 -> 2021-01-31
B16: =EDATE(C15+1,E16) -> 2021-02-01 | C16: =EDATE(B16,ABS(D16))-1 -> 2021-01-31
B17: =EDATE(C16+1,E17) -> 2021-02-01 | C17: =EDATE(B17,ABS(D17))-1 -> 2021-01-31
B18: =EDATE(C17+1,E18) -> 2021-02-01 | C18: 2021-01-31
A19: Projektstart | B19: =MIN(B20:B25) -> 2021-02-01 | C19: =MAX(C20:C25) -> 2021-03-31 | F19: 1 | DW19: Grundlagen usw.
A20: Projekteröffnung (SAP, OAW, GEVER etc.) | B20: =EDATE(C18+1,E20) -> 2021-02-01 | C20: =EDATE(B20,ABS(D20))-1 -> 2021-03-31 | D20: 2 | DW20: Projektorganisation, Finanzplanung
A21: Vergabekonzept Dienstleistungen | B21: =EDATE(C20+1,E21) -> 2021-04-01 | C21: =EDATE(B21,ABS(D21))-1 -> 2021-03-31
B22: =EDATE(C21+1,E22) -> 2021-04-01 | C22: 2021-03-31
B23: =EDATE(C22+1,E23) -> 2021-04-01 | C23: 2021-03-31
B24: =EDATE(C23+1,E24) -> 2021-04-01 | C24: 2021-03-31
B25: =EDATE(C24+1,E25) -> 2021-04-01 | C25: 2021-03-31
A26: Planungsstudie | B26: =MIN(B27:B37) -> 2021-04-01 | C26: =MAX(C27:C37) -> 2021-05-31 | F26: 1
A27: Projektziele definieren | B27: =EDATE(C25+1,E27) -> 2021-04-01 | C27: =EDATE(B27,ABS(D27))-1 -> 2021-05-31 | D27: 2
A28: Projektorganisation / Termin- und Finanzplanung etc. | B28: =EDATE(C27+1,E28) -> 2021-06-01 | C28: =EDATE(B28,ABS(D28))-1 -> 2021-05-31
A29: Planungskredit | B29: =EDATE(C28+1,E29) -> 2021-06-01 | C29: 2021-05-31
A30: Ausschreibung / Vergabe / Auftrag Planer | B30: 2021-06-01 | C30: 2021-05-31
A31: Genehmigung Pflichtenheft | B31: 2021-06-01 | C31: 2021-05-31 | DW31: OIK, Gemeinde
A32: Erarbeiten Studie(n) | B32: 2021-06-01 | C32: 2021-05-31 | DW32: Risikoanalyse
A33: Phasenreview | B33: 2021-06-01 | C33: 2021-05-31
B34: 2021-06-01 | C34: 2021-05-31
B35: 2021-06-01 | C35: 2021-05-31
B36: 2021-06-01 | C36: 2021-05-31
B37: 2021-06-01 | C37: 2021-05-31
A38: Vorprojekt | B38: =MIN(B39:B60) -> 2021-06-01 | C38: =MAX(C39:C60) -> 2021-10-31 | F38: 2
A39: Schwachstellen, Handlungsbedarf dokumentieren | B39: =EDATE(C37+1,E39) -> 2021-06-01 | C39: =EDATE(B39,ABS(D39))-1 -> 2021-10-31 | D39: 5
A40: Vergabekonzept Dienstleistungen | B40: =EDATE(C39+1,E40) -> 2021-11-01 | C40: =EDATE(B40,ABS(D40))-1 -> 2021-10-31
A41: Projektziele definieren | B41: 2021-11-01 | C41: 2021-10-31
A42: Projektorganisation / Termin- und Finanzplanung etc. | B42: 2021-11-01 | C42: 2021-10-31
A43: Projektierungskredit | B43: 2021-11-01 | C43: =EDATE(B43,ABS(D43))-1 -> 2021-10-31
A44: Ausschreibung / Vergabe / Auftrag Planer | B44: 2021-11-01 | C44: =EDATE(B44,ABS(D44))-1 -> 2021-10-31
A45: Grundlagen ergänzen | B45: 2021-11-01 | C45: 2021-10-31 | DW45: Verkehr, Zustand etc.
A46: Genehmigung Zielvereinbarung | B46: 2021-11-01 | C46: 2021-10-31 | DW46: OIK, Gemeinde, Projektverf.
A47: Erarbeiten Vorprojekt und Wirkungsnachweis | B47: =EDATE(C46+1,E47) -> 2021-11-01 | C47: 2021-10-31 | DW47: evtl. Pflichtenheft UVB
A48: A-Projekt Agglo: einreichen an ARE, ASTRA | B48: 2021-11-01 | C48: 2021-10-31 | DW48: 2 Jahre vor Baubeginn
A49: Nachhaltigkeitsbeurteilung ? | B49: 2021-11-01 | C49: 2021-10-31 | DW49: wenn > Fr. 2 Mio. netto
A50: Road Safety Audit | B50: 2021-11-01 | C50: 2021-10-31
A51: Ämterkonsultation (30 Tage) | B51: 2021-11-01 | C51: 2021-10-31 | F51: 5
A52: Überarbeitung Projekt (Risiko) | B52: 2021-11-01 | C52: 2021-10-31 | F52: 6
A53: Mitwirkung (30 Tage) | B53: 2021-11-01 | C53: 2021-10-31 | F53: 5
A54: Mitwirkungsbericht | B54: 2021-11-01 | C54: 2021-10-31
A55: Überarbeitung Projekt (Risiko) | B55: 2021-11-01 | C55: =EDATE(B55,ABS(D55))-1 -> 2021-10-31 | F55: 6
A56: Phasenreview | B56: =EDATE(C55+1,E56) -> 2021-11-01 | C56: =EDATE(B56,ABS(D56))-1 -> 2021-10-31
B57: =EDATE(C56+1,E57) -> 2021-11-01 | C57: =EDATE(B57,ABS(D57))-1 -> 2021-10-31
B58: =EDATE(C57+1,E58) -> 2021-11-01 | C58: =EDATE(B58,ABS(D58))-1 -> 2021-10-31
B59: =EDATE(C58+1,E59) -> 2021-11-01 | C59: 2021-10-31
B60: =EDATE(C59+1,E60) -> 2021-11-01 | C60: 2021-10-31
A61: Bauprojekt / Strassenplan | B61: =MIN(B62:B85) -> 2021-11-01 | C61: =MAX(C62:C85) -> 2023-02-28 | F61: 2
A62: Projektierungskredit | B62: =EDATE(C60+1,E62) -> 2021-11-01 | C62: =EDATE(B62,ABS(D62))-1 -> 2022-03-31 | D62: 5
A63: Ausschreibung / Vergabe / Auftrag Planer | B63: =EDATE(C62+1,E63) -> 2022-04-01 | C63: =EDATE(B63,ABS(D63))-1 -> 2022-03-31
A64: Grundlagen abschliessend ergänzen | B64: =EDATE(C63+1,E64) -> 2022-04-01 | C64: =EDATE(B64,ABS(D64))-1 -> 2022-03-31 | DW64: Baugrund etc. - 4-Augen-Prinzip
A65: Strassenplan (Bauprojekt+KV), Wirkungsnachweis | B65: =EDATE(C64+1,E65) -> 2022-04-01 | C65: 2022-03-31 | DW65: evtl. UVB
A66: Road Safety Audit | B66: =EDATE(C65+1,E66) -> 2022-04-01 | C66: 2022-03-31
A67: Amtsberichte einholen (30 Tage) | B67: 2022-04-01 | C67: 2022-03-31 | F67: 5
A68: Anhörung Bund ? | B68: 2022-04-01 | C68: 2022-03-31 | DW68: bei UVB
A69: Bereinigung | B69: 2022-04-01 | C69: 2022-03-31
A70: Fertigstellen Auflagedossier | B70: 2022-04-01 | C70: 2022-03-31
A71: Planauflage (30 Tage) | B71: 2022-04-01 | C71: 2022-03-31 | F71: 5
A72: Einspracheverhandlungen | B72: 2022-04-01 | C72: 2022-09-30 | D72: 6 | DW72: Standardmässig 6 Monate
A73: Projektänderung vor Erlass (Risiko) | B73: 2022-10-01 | C73: 2022-09-30 | F73: 6
A74: Planauflage Projektänderung (30 Tage) | B74: 2022-10-01 | C74: 2022-09-30 | F74: 5
A75: Strassenplanerlass erarbeiten inkl. Genehmigung | B75: 2022-10-01 | C75: 2023-02-28 | D75: 5 | DW75: Vorbereiten 1 Mt, Rechtsdienst 4 Mt
A76: mögliche Beschwerden | B76: 2023-03-01 | C76: 2023-02-28 | F76: 6 | DW76: DIJ + 1.5 Jahre, Verwaltungsgericht + 1 Jahr, BG+ 1.5 Jahre
A77: Publikation (30 Tage) | B77: 2023-03-01 | C77: 2023-02-28 | F77: 5
A78: Landerwerbsverfahren | B78: 2023-03-01 | C78: 2023-02-28 | DW78: Leistungsvereinbarung
A79: Enteignungsverfahren (Risiko) | B79: 2023-03-01 | C79: 2023-02-28 | F79: 6
A80: A-Projekt Agglo: Gesuch an Bund | B80: 2023-03-01 | C80: 2023-02-28
A81: Phasenreview | B81: =EDATE(C80+1,E81) -> 2023-03-01 | C81: 2023-02-28
B82: =EDATE(C81+1,E82) -> 2023-03-01 | C82: =EDATE(B82,ABS(D82))-1 -> 2023-02-28
B83: =EDATE(C82+1,E83) -> 2023-03-01 | C83: 2023-02-28
B84: =EDATE(C83+1,E84) -> 2023-03-01 | C84: 2023-02-28
B85: =EDATE(C84+1,E85) -> 2023-03-01 | C85: 2023-02-28
A86: Kredit für die Ausführung | B86: =MIN(B87:B94) -> 2023-04-01 | C86: =MAX(C87:C94) -> 2024-04-30 | F86: 3
A87: Kreditvorlage ausarbeiten | B87: =EDATE(C85+1,E87) -> 2023-04-01 | C87: =EDATE(B87,ABS(D87))-1 -> 2023-06-30 | D87: 3 | E87: 1 | DW87: GR: 3 Mt | EM87: RRB: 1 Mt
A88: Kreditgenehmigung | B88: =EDATE(C87+1,E88) -> 2023-07-01 | C88: =EDATE(B88,ABS(D88))-1 -> 2023-12-31 | D88: 6 | DW88: GR: 6 Mt vor Sessionsbeginn | EM88: RRB: 3 Mt
A89: Fakultatives Finanzreferendum (Frist: 3 Monate) | B89: =EDATE(C88+1,E89) -> 2024-01-01 | C89: =EDATE(B89,ABS(D89))-1 -> 2024-04-30 | D89: 4 | DW89: GR: 4 Mt | EM89: RRB: -
A90: Phasenreview | B90: 2024-05-01 | C90: =EDATE(B90,ABS(D90))-1 -> 2024-04-30
B91: =EDATE(C90+1,E91) -> 2024-05-01 | C91: =EDATE(B91,ABS(D91))-1 -> 2024-04-30
B92: =EDATE(C91+1,E92) -> 2024-05-01 | C92: =EDATE(B92,ABS(D92))-1 -> 2024-04-30
B93: =EDATE(C92+1,E93) -> 2024-05-01 | C93: 2024-04-30
B94: =EDATE(C93+1,E94) -> 2024-05-01 | C94: 2024-04-30
A95: Ausführungsprojekt (Phase 1) | B95: =MIN(B96:B102) -> 2024-05-01 | C95: =MAX(C96:C102) -> 2024-09-30 | F95: 4
A96: Ausführungsprojekt | B96: =EDATE(C94+1,E96) -> 2024-05-01 | C96: =EDATE(B96,ABS(D96))-1 -> 2024-09-30 | D96: 5
A97: Prüfung Auflagen, Vernehmlassung | B97: =EDATE(C96+1,E97) -> 2024-10-01 | C97: =EDATE(B97,ABS(D97))-1 -> 2024-09-30
A98: Phasenreview | B98: =EDATE(C97+1,E98) -> 2024-10-01 | C98: =EDATE(B98,ABS(D98))-1 -> 2024-09-30
B99: 2024-10-01 | C99: 2024-09-30
B100: 2024-10-01 | C100: 2024-09-30
B101: 2024-10-01 | C101: 2024-09-30
B102: 2024-10-01 | C102: 2024-09-30
A103: Submission Bauarbeiten | B103: =MIN(B104:B112) -> 2024-10-01 | C103: =MAX(C104:C112) -> 2025-02-28 | F103: 4
A104: Submissionsprojekt und -unterlagen erarbeiten | B104: =EDATE(C102+1,E104) -> 2024-10-01 | C104: =EDATE(B104,ABS(D104))-1 -> 2025-02-28 | D104: 5
A105: Unterlagen prüfen (4-Augen-Prinzip) | B105: =EDATE(C104+1,E105) -> 2025-03-01 | C105: =EDATE(B105,ABS(D105))-1 -> 2025-02-28
A106: Submissions- und Vergabeverfahren | B106: =EDATE(C105+1,E106) -> 2025-03-01 | C106: =EDATE(B106,ABS(D106))-1 -> 2025-02-28 | DW106: Fristen beachten, genügend Zeit für AVOR Unternehmer
A107: Submissionsbeschwerde (Risiko) | B107: 2025-03-01 | C107: 2025-02-28 | F107: 6
A108: Phasenreview | B108: 2025-03-01 | C108: 2025-02-28
B109: =EDATE(C108+1,E109) -> 2025-03-01 | C109: =EDATE(B109,ABS(D109))-1 -> 2025-02-28
B110: 2025-03-01 | C110: 2025-02-28
B111: =EDATE(C110+1,E111) -> 2025-03-01 | C111: 2025-02-28
B112: 2025-03-01 | C112: 2025-02-28
A113: Ausführungsprojekt (Phase 2) | B113: =MIN(B114:B121) -> 2025-03-01 | C113: =MAX(C114:C121) -> 2025-07-31 | F113: 4
A114: Ausführungsprojekt | B114: =EDATE(C112+1,E114) -> 2025-03-01 | C114: =EDATE(B114,ABS(D114))-1 -> 2025-07-31 | D114: 5
A115: Ausführungsprojekt | B115: =EDATE(C114+1,E115) -> 2025-08-01 | C115: =EDATE(B115,ABS(D115))-1 -> 2025-07-31
A116: Ausführungsprojekt | B116: =EDATE(C115+1,E116) -> 2025-08-01 | C116: =EDATE(B116,ABS(D116))-1 -> 2025-07-31
A117: Ausführungsprojekt | B117: 2025-08-01 | C117: 2025-07-31
B118: 2025-08-01 | C118: 2025-07-31
B119: 2025-08-01 | C119: 2025-07-31
B120: 2025-08-01 | C120: 2025-07-31
B121: 2025-08-01 | C121: 2025-07-31
A122: Ausführung / Bau | B122: =MIN(B123:B136) -> 2025-08-01 | C122: =MAX(C123:C136) -> 2025-12-31 | F122: 4
A123: Arbeitsvorbereitung (AVOR) | B123: =EDATE(C121+1,E123) -> 2025-08-01 | C123: =EDATE(B123,ABS(D123))-1 -> 2025-12-31 | D123: 5 | DW123: Informationsveranstaltung, Flyer, Medienanlass usw.
A124: Baubeginn | B124: =EDATE(C123+1,E124) -> 2026-01-01 | C124: =EDATE(B124,ABS(D124))-1 -> 2025-12-31
A125: Bauphase 1 | B125: =EDATE(C124+1,E125) -> 2026-01-01 | C125: =EDATE(B125,ABS(D125))-1 -> 2025-12-31
A126: Bauphase 2 | B126: =EDATE(C125+1,E126) -> 2026-01-01 | C126: 2025-12-31
A127: Bauphase 3 | B127: =EDATE(C126+1,E127) -> 2026-01-01 | C127: 2025-12-31
A128: Bauphase 4 | B128: 2026-01-01 | C128: 2025-12-31
A129: Bauabnahme | B129: 2026-01-01 | C129: 2025-12-31 | F129: 6
A130: Nachforderungen (Risiko) | B130: 2026-01-01 | C130: 2025-12-31
A131: Schlussabrechnung | B131: 2026-01-01 | C131: 2025-12-31
B132: 2026-01-01 | C132: 2025-12-31
B133: =EDATE(C132+1,E133) -> 2026-01-01 | C133: =EDATE(B133,ABS(D133))-1 -> 2025-12-31
B134: 2026-01-01 | C134: 2025-12-31
B135: =EDATE(C134+1,E135) -> 2026-01-01 | C135: 2025-12-31
B136: 2026-01-01 | C136: 2025-12-31
A137: Inbetriebnahme, Eröffnung | B137: =MIN(B138:B143) -> 2026-01-01 | C137: =MAX(C138:C143) -> 2026-05-31 | F137: 4
A138: Erfolgskontrolle | B138: =EDATE(C136+1,E138) -> 2026-01-01 | C138: =EDATE(B138,ABS(D138))-1 -> 2026-05-31 | D138: 5
A139: Handänderungsverfahren | B139: =EDATE(C138+1,E139) -> 2026-06-01 | C139: =EDATE(B139,ABS(D139))-1 -> 2026-05-31
B140: =EDATE(C139+1,E140) -> 2026-06-01 | C140: =EDATE(B140,ABS(D140))-1 -> 2026-05-31
B141: 2026-06-01 | C141: 2026-05-31
B142: 2026-06-01 | C142: 2026-05-31
B143: 2026-06-01 | C143: 2026-05-31
A144: Projektabschluss | B144: =MIN(B145:B154) -> 2026-06-01 | C144: =MAX(C145:C154) -> 2026-10-31 | F144: 4
A145: Abschlussakten (PAW) | B145: =EDATE(C143+1,E145) -> 2026-06-01 | C145: =EDATE(B145,ABS(D145))-1 -> 2026-10-31 | D145: 5
A146: Projektabrechnung | B146: =EDATE(C145+1,E146) -> 2026-11-01 | C146: =EDATE(B146,ABS(D146))-1 -> 2026-10-31 | DW146: KUBA, LOGO, Entw., Bel. etc.
A147: Nachführen Datenbanken | B147: =EDATE(C146+1,E147) -> 2026-11-01 | C147: 2026-10-31
A148: Projektabschlussbericht (bei A-Projekten) | B148: 2026-11-01 | C148: 2026-10-31
A149: Archivierung | B149: =EDATE(C148+1,E149) -> 2026-11-01 | C149: =EDATE(B149,ABS(D149))-1 -> 2026-10-31
A150: Phasenreview | B150: 2026-11-01 | C150: 2026-10-31
B151: 2026-11-01 | C151: 2026-10-31
B152: 2026-11-01 | C152: 2026-10-31
B153: 2026-11-01 | C153: 2026-10-31
B154: 2026-11-01 | C154: 2026-10-31
A156: Aggregiert nach Phasen
A157: Vorlauf | B157: =B12 -> 2021-01-01 | C157: =C12 -> 2021-01-31 | D157: =D12 -> 0 | E157: =E12 -> 0 | F157: =F12 -> 1 | EE157: Kostenkontrolltabelle
A158: Projektstart | B158: =B19 -> 2021-02-01 | C158: =C19 -> 2021-03-31 | F158: =F19 -> 1 | EE158: Planung | EK158: Projektierung | EQ158: Baukosten
A159: Planungsstudie | B159: =B26 -> 2021-04-01 | C159: =C26 -> 2021-05-31 | D159: =D26 -> 0 | E159: =E26 -> 0 | F159: =F26 -> 1 | G159: =IF($B159<$C159,ROUND($EE159/(DATEDIF($B159,$C159,"m")+1)*((MONTH(MIN((1&-G$9-1)-1,$C159))-MONTH(MAX(1&-G$9,$B159))+1)*(YEAR($B159)<=G$9)*(YEAR($C159)>=G$9)),-3),0) -> 60000 | S159: =IF($B159<$C159,ROUND($EE159/(DATEDIF($B159,$C159,"m")+1)*((MONTH(MIN((1&-S$9-1)-1,$C159))-MONTH(MAX(1&-S$9,$B159))+1)*(YEAR($B159)<=S$9)*(YEAR($C159)>=S$9)),-3),0) -> 0 | AE159: =IF($B159<$C159,ROUND($EE159/(DATEDIF($B159,$C159,"m")+1)*((MONTH(MIN((1&-AE$9-1)-1,$C159))-MONTH(MAX(1&-AE$9,$B159))+1)*(YEAR($B159)<=AE$9)*(YEAR($C159)>=AE$9)),-3),0) -> 0 | AQ159: =IF($B159<$C159,ROUND($EE159/(DATEDIF($B159,$C159,"m")+1)*((MONTH(MIN((1&-AQ$9-1)-1,$C159))-MONTH(MAX(1&-AQ$9,$B159))+1)*(YEAR($B159)<=AQ$9)*(YEAR($C159)>=AQ$9)),-3),0) -> 0 | BC159: =IF($B159<$C159,ROUND($EE159/(DATEDIF($B159,$C159,"m")+1)*((MONTH(MIN((1&-BC$9-1)-1,$C159))-MONTH(MAX(1&-BC$9,$B159))+1)*(YEAR($B159)<=BC$9)*(YEAR($C159)>=BC$9)),-3),0) -> 0 | BO159: =IF($B159<$C159,ROUND($EE159/(DATEDIF($B159,$C159,"m")+1)*((MONTH(MIN((1&-BO$9-1)-1,$C159))-MONTH(MAX(1&-BO$9,$B159))+1)*(YEAR($B159)<=BO$9)*(YEAR($C159)>=BO$9)),-3),0) -> 0 | CA159: =IF($B159<$C159,ROUND($EE159/(DATEDIF($B159,$C159,"m")+1)*((MONTH(MIN((1&-CA$9-1)-1,$C159))-MONTH(MAX(1&-CA$9,$B159))+1)*(YEAR($B159)<=CA$9)*(YEAR($C159)>=CA$9)),-3),0) -> 0 | CM159: =IF($B159<$C159,ROUND($EE159/(DATEDIF($B159,$C159,"m")+1)*((MONTH(MIN((1&-CM$9-1)-1,$C159))-MONTH(MAX(1&-CM$9,$B159))+1)*(YEAR($B159)<=CM$9)*(YEAR($C159)>=CM$9)),-3),0) -> 0 | CY159: =IF($B159<$C159,ROUND($EE159/(DATEDIF($B159,$C159,"m")+1)*((MONTH(MIN((1&-CY$9-1)-1,$C159))-MONTH(MAX(1&-CY$9,$B159))+1)*(YEAR($B159)<=CY$9)*(YEAR($C159)>=CY$9)),-3),0) -> 0 | DK159: =IF($B159<$C159,ROUND($EE159/(DATEDIF($B159,$C159,"m")+1)*((MONTH(MIN((1&-DK$9-1)-1,$C159))-MONTH(MAX(1&-DK$9,$B159))+1)*(YEAR($B159)<=DK$9)*(YEAR($C159)>=DK$9)),-3),0) -> 0 | DW159: Leistungen SIA | EE159: =EQ172 -> 60000
A160: Vorprojekt | B160: =B38 -> 2021-06-01 | C160: =C38 -> 2021-10-31 | D160: =D38 -> 0 | E160: =E38 -> 0 | F160: =F38 -> 2 | G160: =IF($B160<$C160,ROUND($EK160/(DATEDIF($B160,$C160,"m")+1)*((MONTH(MIN((1&-G$9-1)-1,$C160))-MONTH(MAX(1&-G$9,$B160))+1)*(YEAR($B160)<=G$9)*(YEAR($C160)>=G$9)),-3),0) -> 54000 | S160: =IF($B160<$C160,ROUND($EK160/(DATEDIF($B160,$C160,"m")+1)*((MONTH(MIN((1&-S$9-1)-1,$C160))-MONTH(MAX(1&-S$9,$B160))+1)*(YEAR($B160)<=S$9)*(YEAR($C160)>=S$9)),-3),0) -> 0 | AE160: =IF($B160<$C160,ROUND($EK160/(DATEDIF($B160,$C160,"m")+1)*((MONTH(MIN((1&-AE$9-1)-1,$C160))-MONTH(MAX(1&-AE$9,$B160))+1)*(YEAR($B160)<=AE$9)*(YEAR($C160)>=AE$9)),-3),0) -> 0 | AQ160: =IF($B160<$C160,ROUND($EK160/(DATEDIF($B160,$C160,"m")+1)*((MONTH(MIN((1&-AQ$9-1)-1,$C160))-MONTH(MAX(1&-AQ$9,$B160))+1)*(YEAR($B160)<=AQ$9)*(YEAR($C160)>=AQ$9)),-3),0) -> 0 | BC160: =IF($B160<$C160,ROUND($EK160/(DATEDIF($B160,$C160,"m")+1)*((MONTH(MIN((1&-BC$9-1)-1,$C160))-MONTH(MAX(1&-BC$9,$B160))+1)*(YEAR($B160)<=BC$9)*(YEAR($C160)>=BC$9)),-3),0) -> 0 | BO160: =IF($B160<$C160,ROUND($EK160/(DATEDIF($B160,$C160,"m")+1)*((MONTH(MIN((1&-BO$9-1)-1,$C160))-MONTH(MAX(1&-BO$9,$B160))+1)*(YEAR($B160)<=BO$9)*(YEAR($C160)>=BO$9)),-3),0) -> 0 | CA160: =IF($B160<$C160,ROUND($EK160/(DATEDIF($B160,$C160,"m")+1)*((MONTH(MIN((1&-CA$9-1)-1,$C160))-MONTH(MAX(1&-CA$9,$B160))+1)*(YEAR($B160)<=CA$9)*(YEAR($C160)>=CA$9)),-3),0) -> 0 | CM160: =IF($B160<$C160,ROUND($EK160/(DATEDIF($B160,$C160,"m")+1)*((MONTH(MIN((1&-CM$9-1)-1,$C160))-MONTH(MAX(1&-CM$9,$B160))+1)*(YEAR($B160)<=CM$9)*(YEAR($C160)>=CM$9)),-3),0) -> 0 | CY160: =IF($B160<$C160,ROUND($EK160/(DATEDIF($B160,$C160,"m")+1)*((MONTH(MIN((1&-CY$9-1)-1,$C160))-MONTH(MAX(1&-CY$9,$B160))+1)*(YEAR($B160)<=CY$9)*(YEAR($C160)>=CY$9)),-3),0) -> 0 | DK160: =IF($B160<$C160,ROUND($EK160/(DATEDIF($B160,$C160,"m")+1)*((MONTH(MIN((1&-DK$9-1)-1,$C160))-MONTH(MAX(1&-DK$9,$B160))+1)*(YEAR($B160)<=DK$9)*(YEAR($C160)>=DK$9)),-3),0) -> 0 | DW160: 0.09 | EK160: =$EQ$173*DW160 -> 54000
A161: Bauprojekt / Strassenplan | B161: =B61 -> 2021-11-01 | C161: =C61 -> 2023-02-28 | D161: =D61 -> 0 | E161: =E61 -> 0 | F161: =F61 -> 2 | G161: =IF($B161<$C161,ROUND($EK161/(DATEDIF($B161,$C161,"m")+1)*((MONTH(MIN((1&-G$9-1)-1,$C161))-MONTH(MAX(1&-G$9,$B161))+1)*(YEAR($B161)<=G$9)*(YEAR($C161)>=G$9)),-3),0) -> 18000 | S161: =IF($B161<$C161,ROUND($EK161/(DATEDIF($B161,$C161,"m")+1)*((MONTH(MIN((1&-S$9-1)-1,$C161))-MONTH(MAX(1&-S$9,$B161))+1)*(YEAR($B161)<=S$9)*(YEAR($C161)>=S$9)),-3),0) -> 108000 | AE161: =IF($B161<$C161,ROUND($EK161/(DATEDIF($B161,$C161,"m")+1)*((MONTH(MIN((1&-AE$9-1)-1,$C161))-MONTH(MAX(1&-AE$9,$B161))+1)*(YEAR($B161)<=AE$9)*(YEAR($C161)>=AE$9)),-3),0) -> 18000 | AQ161: =IF($B161<$C161,ROUND($EK161/(DATEDIF($B161,$C161,"m")+1)*((MONTH(MIN((1&-AQ$9-1)-1,$C161))-MONTH(MAX(1&-AQ$9,$B161))+1)*(YEAR($B161)<=AQ$9)*(YEAR($C161)>=AQ$9)),-3),0) -> 0 | BC161: =IF($B161<$C161,ROUND($EK161/(DATEDIF($B161,$C161,"m")+1)*((MONTH(MIN((1&-BC$9-1)-1,$C161))-MONTH(MAX(1&-BC$9,$B161))+1)*(YEAR($B161)<=BC$9)*(YEAR($C161)>=BC$9)),-3),0) -> 0 | BO161: =IF($B161<$C161,ROUND($EK161/(DATEDIF($B161,$C161,"m")+1)*((MONTH(MIN((1&-BO$9-1)-1,$C161))-MONTH(MAX(1&-BO$9,$B161))+1)*(YEAR($B161)<=BO$9)*(YEAR($C161)>=BO$9)),-3),0) -> 0 | CA161: =IF($B161<$C161,ROUND($EK161/(DATEDIF($B161,$C161,"m")+1)*((MONTH(MIN((1&-CA$9-1)-1,$C161))-MONTH(MAX(1&-CA$9,$B161))+1)*(YEAR($B161)<=CA$9)*(YEAR($C161)>=CA$9)),-3),0) -> 0 | CM161: =IF($B161<$C161,ROUND($EK161/(DATEDIF($B161,$C161,"m")+1)*((MONTH(MIN((1&-CM$9-1)-1,$C161))-MONTH(MAX(1&-CM$9,$B161))+1)*(YEAR($B161)<=CM$9)*(YEAR($C161)>=CM$9)),-3),0) -> 0 | CY161: =IF($B161<$C161,ROUND($EK161/(DATEDIF($B161,$C161,"m")+1)*((MONTH(MIN((1&-CY$9-1)-1,$C161))-MONTH(MAX(1&-CY$9,$B161))+1)*(YEAR($B161)<=CY$9)*(YEAR($C161)>=CY$9)),-3),0) -> 0 | DK161: =IF($B161<$C161,ROUND($EK161/(DATEDIF($B161,$C161,"m")+1)*((MONTH(MIN((1&-DK$9-1)-1,$C161))-MONTH(MAX(1&-DK$9,$B161))+1)*(YEAR($B161)<=DK$9)*(YEAR($C161)>=DK$9)),-3),0) -> 0 | DW161: 0.24 | EK161: =$EQ$173*DW161 -> 144000
A162: Kredit für die Ausführung | B162: =B86 -> 2023-04-01 | C162: =C86 -> 2024-04-30 | D162: =D86 -> 0 | E162: =E86 -> 0 | F162: =F86 -> 3 | G162: =ROUND($EL162/(DATEDIF($B162,$C162,"m")+1)*((MONTH(MIN((1&-G$9-1)-1,$C162))-MONTH(MAX(1&-G$9,$B162))+1)*(YEAR($B162)<=G$9)*(YEAR($C162)>=G$9)),-3) -> 0 | S162: =ROUND($EL162/(DATEDIF($B162,$C162,"m")+1)*((MONTH(MIN((1&-S$9-1)-1,$C162))-MONTH(MAX(1&-S$9,$B162))+1)*(YEAR($B162)<=S$9)*(YEAR($C162)>=S$9)),-3) -> 0 | AE162: =ROUND($EL162/(DATEDIF($B162,$C162,"m")+1)*((MONTH(MIN((1&-AE$9-1)-1,$C162))-MONTH(MAX(1&-AE$9,$B162))+1)*(YEAR($B162)<=AE$9)*(YEAR($C162)>=AE$9)),-3) -> 0 | AQ162: =ROUND($EL162/(DATEDIF($B162,$C162,"m")+1)*((MONTH(MIN((1&-AQ$9-1)-1,$C162))-MONTH(MAX(1&-AQ$9,$B162))+1)*(YEAR($B162)<=AQ$9)*(YEAR($C162)>=AQ$9)),-3) -> 0 | BC162: =ROUND($EL162/(DATEDIF($B162,$C162,"m")+1)*((MONTH(MIN((1&-BC$9-1)-1,$C162))-MONTH(MAX(1&-BC$9,$B162))+1)*(YEAR($B162)<=BC$9)*(YEAR($C162)>=BC$9)),-3) -> 0 | BO162: =ROUND($EL162/(DATEDIF($B162,$C162,"m")+1)*((MONTH(MIN((1&-BO$9-1)-1,$C162))-MONTH(MAX(1&-BO$9,$B162))+1)*(YEAR($B162)<=BO$9)*(YEAR($C162)>=BO$9)),-3) -> 0 | CA162: =ROUND($EL162/(DATEDIF($B162,$C162,"m")+1)*((MONTH(MIN((1&-CA$9-1)-1,$C162))-MONTH(MAX(1&-CA$9,$B162))+1)*(YEAR($B162)<=CA$9)*(YEAR($C162)>=CA$9)),-3) -> 0 | CM162: =ROUND($EL162/(DATEDIF($B162,$C162,"m")+1)*((MONTH(MIN((1&-CM$9-1)-1,$C162))-MONTH(MAX(1&-CM$9,$B162))+1)*(YEAR($B162)<=CM$9)*(YEAR($C162)>=CM$9)),-3) -> 0 | CY162: =ROUND($EL162/(DATEDIF($B162,$C162,"m")+1)*((MONTH(MIN((1&-CY$9-1)-1,$C162))-MONTH(MAX(1&-CY$9,$B162))+1)*(YEAR($B162)<=CY$9)*(YEAR($C162)>=CY$9)),-3) -> 0 | DK162: =ROUND($EL162/(DATEDIF($B162,$C162,"m")+1)*((MONTH(MIN((1&-DK$9-1)-1,$C162))-MONTH(MAX(1&-DK$9,$B162))+1)*(YEAR($B162)<=DK$9)*(YEAR($C162)>=DK$9)),-3) -> 0 | EL162: =$EQ$173*DW162 -> 0
A163: Ausführungsprojekt (Phase 1) | B163: =B95 -> 2024-05-01 | C163: =C95 -> 2024-09-30 | F163: =F95 -> 4 | G163: =IF($B163<$C163,ROUND($EK163/(DATEDIF($B163,$C163,"m")+1)*((MONTH(MIN((1&-G$9-1)-1,$C163))-MONTH(MAX(1&-G$9,$B163))+1)*(YEAR($B163)<=G$9)*(YEAR($C163)>=G$9)),-3),0) -> 0 | S163: =IF($B163<$C163,ROUND($EK163/(DATEDIF($B163,$C163,"m")+1)*((MONTH(MIN((1&-S$9-1)-1,$C163))-MONTH(MAX(1&-S$9,$B163))+1)*(YEAR($B163)<=S$9)*(YEAR($C163)>=S$9)),-3),0) -> 0 | AE163: =IF($B163<$C163,ROUND($EK163/(DATEDIF($B163,$C163,"m")+1)*((MONTH(MIN((1&-AE$9-1)-1,$C163))-MONTH(MAX(1&-AE$9,$B163))+1)*(YEAR($B163)<=AE$9)*(YEAR($C163)>=AE$9)),-3),0) -> 0 | AQ163: =IF($B163<$C163,ROUND($EK163/(DATEDIF($B163,$C163,"m")+1)*((MONTH(MIN((1&-AQ$9-1)-1,$C163))-MONTH(MAX(1&-AQ$9,$B163))+1)*(YEAR($B163)<=AQ$9)*(YEAR($C163)>=AQ$9)),-3),0) -> 54000 | BC163: =IF($B163<$C163,ROUND($EK163/(DATEDIF($B163,$C163,"m")+1)*((MONTH(MIN((1&-BC$9-1)-1,$C163))-MONTH(MAX(1&-BC$9,$B163))+1)*(YEAR($B163)<=BC$9)*(YEAR($C163)>=BC$9)),-3),0) -> 0 | BO163: =IF($B163<$C163,ROUND($EK163/(DATEDIF($B163,$C163,"m")+1)*((MONTH(MIN((1&-BO$9-1)-1,$C163))-MONTH(MAX(1&-BO$9,$B163))+1)*(YEAR($B163)<=BO$9)*(YEAR($C163)>=BO$9)),-3),0) -> 0 | CA163: =IF($B163<$C163,ROUND($EK163/(DATEDIF($B163,$C163,"m")+1)*((MONTH(MIN((1&-CA$9-1)-1,$C163))-MONTH(MAX(1&-CA$9,$B163))+1)*(YEAR($B163)<=CA$9)*(YEAR($C163)>=CA$9)),-3),0) -> 0 | CM163: =IF($B163<$C163,ROUND($EK163/(DATEDIF($B163,$C163,"m")+1)*((MONTH(MIN((1&-CM$9-1)-1,$C163))-MONTH(MAX(1&-CM$9,$B163))+1)*(YEAR($B163)<=CM$9)*(YEAR($C163)>=CM$9)),-3),0) -> 0 | CY163: =IF($B163<$C163,ROUND($EK163/(DATEDIF($B163,$C163,"m")+1)*((MONTH(MIN((1&-CY$9-1)-1,$C163))-MONTH(MAX(1&-CY$9,$B163))+1)*(YEAR($B163)<=CY$9)*(YEAR($C163)>=CY$9)),-3),0) -> 0 | DK163: =IF($B163<$C163,ROUND($EK163/(DATEDIF($B163,$C163,"m")+1)*((MONTH(MIN((1&-DK$9-1)-1,$C163))-MONTH(MAX(1&-DK$9,$B163))+1)*(YEAR($B163)<=DK$9)*(YEAR($C163)>=DK$9)),-3),0) -> 0 | DW163: 0.09 | EK163: =$EQ$173*DW163 -> 54000
A164: Submission Bauarbeiten | B164: =B103 -> 2024-10-01 | C164: =C103 -> 2025-02-28 | D164: =D103 -> 0 | E164: =E103 -> 0 | F164: =F103 -> 4 | G164: =IF($B164<$C164,ROUND($EK164/(DATEDIF($B164,$C164,"m")+1)*((MONTH(MIN((1&-G$9-1)-1,$C164))-MONTH(MAX(1&-G$9,$B164))+1)*(YEAR($B164)<=G$9)*(YEAR($C164)>=G$9)),-3),0) -> 0 | S164: =IF($B164<$C164,ROUND($EK164/(DATEDIF($B164,$C164,"m")+1)*((MONTH(MIN((1&-S$9-1)-1,$C164))-MONTH(MAX(1&-S$9,$B164))+1)*(YEAR($B164)<=S$9)*(YEAR($C164)>=S$9)),-3),0) -> 0 | AE164: =IF($B164<$C164,ROUND($EK164/(DATEDIF($B164,$C164,"m")+1)*((MONTH(MIN((1&-AE$9-1)-1,$C164))-MONTH(MAX(1&-AE$9,$B164))+1)*(YEAR($B164)<=AE$9)*(YEAR($C164)>=AE$9)),-3),0) -> 0 | AQ164: =IF($B164<$C164,ROUND($EK164/(DATEDIF($B164,$C164,"m")+1)*((MONTH(MIN((1&-AQ$9-1)-1,$C164))-MONTH(MAX(1&-AQ$9,$B164))+1)*(YEAR($B164)<=AQ$9)*(YEAR($C164)>=AQ$9)),-3),0) -> 58000 | BC164: =IF($B164<$C164,ROUND($EK164/(DATEDIF($B164,$C164,"m")+1)*((MONTH(MIN((1&-BC$9-1)-1,$C164))-MONTH(MAX(1&-BC$9,$B164))+1)*(YEAR($B164)<=BC$9)*(YEAR($C164)>=BC$9)),-3),0) -> 38000 | BO164: =IF($B164<$C164,ROUND($EK164/(DATEDIF($B164,$C164,"m")+1)*((MONTH(MIN((1&-BO$9-1)-1,$C164))-MONTH(MAX(1&-BO$9,$B164))+1)*(YEAR($B164)<=BO$9)*(YEAR($C164)>=BO$9)),-3),0) -> 0 | CA164: =IF($B164<$C164,ROUND($EK164/(DATEDIF($B164,$C164,"m")+1)*((MONTH(MIN((1&-CA$9-1)-1,$C164))-MONTH(MAX(1&-CA$9,$B164))+1)*(YEAR($B164)<=CA$9)*(YEAR($C164)>=CA$9)),-3),0) -> 0 | CM164: =IF($B164<$C164,ROUND($EK164/(DATEDIF($B164,$C164,"m")+1)*((MONTH(MIN((1&-CM$9-1)-1,$C164))-MONTH(MAX(1&-CM$9,$B164))+1)*(YEAR($B164)<=CM$9)*(YEAR($C164)>=CM$9)),-3),0) -> 0 | CY164: =IF($B164<$C164,ROUND($EK164/(DATEDIF($B164,$C164,"m")+1)*((MONTH(MIN((1&-CY$9-1)-1,$C164))-MONTH(MAX(1&-CY$9,$B164))+1)*(YEAR($B164)<=CY$9)*(YEAR($C164)>=CY$9)),-3),0) -> 0 | DK164: =IF($B164<$C164,ROUND($EK164/(DATEDIF($B164,$C164,"m")+1)*((MONTH(MIN((1&-DK$9-1)-1,$C164))-MONTH(MAX(1&-DK$9,$B164))+1)*(YEAR($B164)<=DK$9)*(YEAR($C164)>=DK$9)),-3),0) -> 0 | DW164: 0.16 | EK164: 96000
A165: Ausführungsprojekt (Phase 2) | B165: =B113 -> 2025-03-01 | C165: =C113 -> 2025-07-31 | F165: =F113 -> 4 | G165: 0 | S165: 0 | AE165: 0 | AQ165: 0 | BC165: 54000 | BO165: 0 | CA165: 0 | CM165: 0 | CY165: 0 | DK165: 0 | DW165: 0.09 | EK165: 54000
A166: Bauausführung / Bau | B166: =B122 -> 2025-08-01 | C166: =C122 -> 2025-12-31 | D166: =D122 -> 0 | E166: =E122 -> 0 | F166: =F122 -> 4 | G166: =IF($B166<$C166,ROUND(($EK166+$EQ166)/(DATEDIF($B166,$C166,"m")+1)*((MONTH(MIN((1&-G$9-1)-1,$C166))-MONTH(MAX(1&-G$9,$B166))+1)*(YEAR($B166)<=G$9)*(YEAR($C166)>=G$9)),-3),0) -> 0 | S166: =IF($B166<$C166,ROUND(($EK166+$EQ166)/(DATEDIF($B166,$C166,"m")+1)*((MONTH(MIN((1&-S$9-1)-1,$C166))-MONTH(MAX(1&-S$9,$B166))+1)*(YEAR($B166)<=S$9)*(YEAR($C166)>=S$9)),-3),0) -> 0 | AE166: =IF($B166<$C166,ROUND(($EK166+$EQ166)/(DATEDIF($B166,$C166,"m")+1)*((MONTH(MIN((1&-AE$9-1)-1,$C166))-MONTH(MAX(1&-AE$9,$B166))+1)*(YEAR($B166)<=AE$9)*(YEAR($C166)>=AE$9)),-3),0) -> 0 | AQ166: =IF($B166<$C166,ROUND(($EK166+$EQ166)/(DATEDIF($B166,$C166,"m")+1)*((MONTH(MIN((1&-AQ$9-1)-1,$C166))-MONTH(MAX(1&-AQ$9,$B166))+1)*(YEAR($B166)<=AQ$9)*(YEAR($C166)>=AQ$9)),-3),0) -> 0 | BC166: =IF($B166<$C166,ROUND(($EK166+$EQ166)/(DATEDIF($B166,$C166,"m")+1)*((MONTH(MIN((1&-BC$9-1)-1,$C166))-MONTH(MAX(1&-BC$9,$B166))+1)*(YEAR($B166)<=BC$9)*(YEAR($C166)>=BC$9)),-3),0) -> 5174000 | BO166: =IF($B166<$C166,ROUND(($EK166+$EQ166)/(DATEDIF($B166,$C166,"m")+1)*((MONTH(MIN((1&-BO$9-1)-1,$C166))-MONTH(MAX(1&-BO$9,$B166))+1)*(YEAR($B166)<=BO$9)*(YEAR($C166)>=BO$9)),-3),0) -> 0 | CA166: =IF($B166<$C166,ROUND(($EK166+$EQ166)/(DATEDIF($B166,$C166,"m")+1)*((MONTH(MIN((1&-CA$9-1)-1,$C166))-MONTH(MAX(1&-CA$9,$B166))+1)*(YEAR($B166)<=CA$9)*(YEAR($C166)>=CA$9)),-3),0) -> 0 | CM166: =IF($B166<$C166,ROUND(($EK166+$EQ166)/(DATEDIF($B166,$C166,"m")+1)*((MONTH(MIN((1&-CM$9-1)-1,$C166))-MONTH(MAX(1&-CM$9,$B166))+1)*(YEAR($B166)<=CM$9)*(YEAR($C166)>=CM$9)),-3),0) -> 0 | CY166: =IF($B166<$C166,ROUND(($EK166+$EQ166)/(DATEDIF($B166,$C166,"m")+1)*((MONTH(MIN((1&-CY$9-1)-1,$C166))-MONTH(MAX(1&-CY$9,$B166))+1)*(YEAR($B166)<=CY$9)*(YEAR($C166)>=CY$9)),-3),0) -> 0 | DK166: =IF($B166<$C166,ROUND(($EK166+$EQ166)/(DATEDIF($B166,$C166,"m")+1)*((MONTH(MIN((1&-DK$9-1)-1,$C166))-MONTH(MAX(1&-DK$9,$B166))+1)*(YEAR($B166)<=DK$9)*(YEAR($C166)>=DK$9)),-3),0) -> 0 | DW166: 0.29 | EK166: 174000 | EQ166: =EQ176 -> 5000000
A167: Inbetriebnahme, Eröffnung | B167: =B137 -> 2026-01-01 | C167: =C137 -> 2026-05-31 | D167: =D137 -> 0 | E167: =E137 -> 0 | F167: =F137 -> 4 | G167: 0 | S167: 0 | AE167: 0 | AQ167: 0 | BC167: 0 | BO167: 12000 | CA167: 0 | CM167: 0 | CY167: 0 | DK167: 0 | DW167: 0.02 | EK167: 12000
A168: Projektabschluss | B168: =B144 -> 2026-06-01 | C168: =C144 -> 2026-10-31 | D168: =D144 -> 0 | E168: =E144 -> 0 | F168: =F144 -> 4 | G168: 0 | S168: 0 | AE168: 0 | AQ168: 0 | BC168: 0 | BO168: 12000 | CA168: 0 | CM168: 0 | CY168: 0 | DK168: 0 | DW168: 0.02 | EK168: 12000
DW169: =SUM(DW160:DY168) -> 1 | EE169: =SUM(EE159:EJ168) -> 60000 | EK169: =SUM(EF160:EL168) -> 600000 | EQ169: =SUM(EQ159:EV168) -> 5000000
A171: Aggregiert nach Hauptphasen | EE171: Eingabemaske Budget
A172: Planung (SIA 11-21) | B172: =MIN(B12,B19,B26) -> 2021-01-01 | C172: =MAX(C12,C19,C26) -> 2021-05-31 | F172: =MIN(F10:F12,F19,F26) -> 1 | EE172: Planungsstudie total | EQ172: 60000
A173: Projektierung (SIA 31-33) | B173: =MIN(B38,B61) -> 2021-06-01 | C173: =MAX(C38,C61) -> 2023-02-28 | F173: =MIN(F38,F61) -> 2 | EE173: Projektierungskosten total | EQ173: 600000
A174: Kreditbeschaffung | B174: =MIN(B86) -> 2023-04-01 | C174: =MAX(C86) -> 2024-04-30 | F174: =MIN(F86) -> 3 | EE174: Anteil Projektierung (SIA 31-33) | EQ174: =SUM(DW160:DY161) -> 0.33
A175: Ausführung (SIA 41-53) | B175: =MIN(B95,B103,B122,B137,B144) -> 2024-05-01 | C175: =MAX(C95,C103,C122,C137,C144) -> 2026-10-31 | F175: =MIN(F95,F103,F122,F137,F144) -> 4 | EE175: Anteil Projektierung (SIA 41-53) | EQ175: =1-EQ174 -> 0.67
EE176: Baukosten Ausführung | EQ176: 5000000
EE177: Kosten total | EQ177: =EQ176+EQ173+EQ172 -> 5660000
A179: Mittlere Budgetverteilung berechnet | G179: =G9 -> 2021 | S179: =G179+1 -> 2022 | AE179: =S179+1 -> 2023 | AQ179: =AE179+1 -> 2024 | BC179: =AQ179+1 -> 2025 | BO179: =BC179+1 -> 2026 | CA179: =BO179+1 -> 2027 | CM179: =CA179+1 -> 2028 | CY179: =CM179+1 -> 2029 | DK179: =CY179+1 -> 2030
A180: Planung (SIA 11-21) | G180: =SUM(G157:G159) -> 60000 | S180: =SUM(S157:S159) -> 0 | AE180: =SUM(AE157:AE159) -> 0 | AQ180: =SUM(AQ157:AQ159) -> 0 | BC180: =SUM(BC157:BC159) -> 0 | BO180: =SUM(BO157:BO159) -> 0 | CA180: =SUM(CA157:CA159) -> 0 | CM180: =SUM(CM157:CM159) -> 0 | CY180: =SUM(CY157:CY159) -> 0 | DK180: =SUM(DK157:DK159) -> 0 | DW180: =SUM(G180:DV180) -> 60000
A181: Projektierung (SIA 31-33) | G181: =SUM(G160:G161) -> 72000 | S181: =SUM(S160:S161) -> 108000 | AE181: =SUM(AE160:AE161) -> 18000 | AQ181: =SUM(AQ160:AQ161) -> 0 | BC181: =SUM(BC160:BC161) -> 0 | BO181: =SUM(BO160:BO161) -> 0 | CA181: =SUM(CA160:CA161) -> 0 | CM181: =SUM(CM160:CM161) -> 0 | CY181: =SUM(CY160:CY161) -> 0 | DK181: =SUM(DK160:DK161) -> 0 | DW181: =SUM(G181:DV181) -> 198000
A182: Projektierung und Ausführung (SIA 41-53) | G182: =SUM(G163:G168) -> 0 | S182: =SUM(S163:S168) -> 0 | AE182: =SUM(AE163:AE168) -> 0 | AQ182: =SUM(AQ163:AQ168) -> 112000 | BC182: =SUM(BC163:BC168) -> 5266000 | BO182: =SUM(BO163:BO168) -> 24000 | CA182: =SUM(CA163:CA168) -> 0 | CM182: =SUM(CM163:CM168) -> 0 | CY182: =SUM(CY163:CY168) -> 0 | DK182: =SUM(DK163:DK168) -> 0 | DW182: =SUM(G182:DV182) -> 5402000
G183: =SUM(G180:R182) -> 132000 | S183: =SUM(S180:AD182) -> 108000 | AE183: =SUM(AE180:AP182) -> 18000 | AQ183: =SUM(AQ180:BB182) -> 112000 | BC183: =SUM(BC180:BN182) -> 5266000 | BO183: =SUM(BO180:BZ182) -> 24000 | CA183: =SUM(CA180:CL182) -> 0 | CM183: =SUM(CM180:CX182) -> 0 | CY183: =SUM(CY180:DJ182) -> 0 | DK183: =SUM(DK180:DV182) -> 0 | DW183: =SUM(G183:DV183) -> 5660000
A186: Budgeverteilung PL | G186: =B5 -> 2021 | S186: =G186+1 -> 2022 | AE186: =S186+1 -> 2023 | AQ186: =AE186+1 -> 2024 | BC186: =AQ186+1 -> 2025 | BO186: =BC186+1 -> 2026 | CA186: =BO186+1 -> 2027 | CM186: =CA186+1 -> 2028 | CY186: =CM186+1 -> 2029 | DK186: =CY186+1 -> 2030
A187: Planung (SIA 11-21) | DW187: =SUM(G187:DV187) -> 0
A188: Projektierung (SIA 31-33) | DW188: =SUM(G188:DV188) -> 0
A189: Ausführung (SIA 41-53) | DW189: =SUM(G189:DV189) -> 0
DW190: =SUM(DW187:EC189) -> 0
A192: Bereich für eigene Beitragsberechnungen
A226: *Die vorliegenden Tätigkeiten bilden die Prozessschritte in reduzierter Form ab. Die gültigen Prozesse sind im IST publiziert.
